bitfinex-derivatives/quotes_ETHF0:USTF0_20251024
["timestamp","ask_amount","ask_price","bid_price","bid_amount"]
[1761314140749,0.45658,3941.9,3941.2,0.45666]
[1761314141045,3.2078,3941.7,3941.1,3.2078]
[1761314141543,3.2078,3942.2,3941.1,3.2078]
[1761314141740,3.210213,3941.7,3941.1,3.2078]
[1761314142338,3.210213,3941.7,3941.5,0.45662]
[1761314142845,0.45663,3941.5,3941.1,3.2078]
[1761314143048,0.45663,3941.5,3940.5,1.36175489]
[1761314143049,0.45663,3941.5,3940.9,9.992]
[1761314143746,3.666823,3941.7,3941.0,0.45668]
[1761314143942,3.210213,3941.7,3941.2,0.45665]
[1761314144248,3.210213,3941.7,3941.0,0.45668]
[1761314144249,0.45662,3941.6,3941.0,0.45668]
[1761314145144,0.45662,3941.6,3941.1,0.45667]
[1761314145449,3.210213,3941.7,3940.9,9.992]
[1761314145641,3.210213,3941.7,3941.2,0.45666]
[1761314145940,3.210213,3941.7,3941.0,0.45668]
[1761314146448,3.2078,3941.3,3940.2,0.45863983]
[1761314146643,3.2078,3940.8,3940.2,10.44663983]
[1761314147040,3.2078,3940.8,3940.2,9.98986983]
[1761314147245,3.2078,3940.3,3940.2,0.00186983]
[1761314150443,3.2078,3940.3,3940.2,9.98686983]
[1761314151650,3.2078,3940.8,3940.5,0.45674]
[1761314152347,3.2078,3940.8,3940.3,0.45675]
[1761314152538,3.66451,3940.8,3940.4,0.45675]
[1761314153445,3.2078,3940.8,3940.5,0.45674]
[1761314153749,3.2078,3940.8,3940.2,0.00186983]
[1761314154154,3.66451,3940.8,3940.4,0.45675]
[1761314154455,3.2078,3940.8,3940.5,0.45674]
[1761314154747,3.2078,3940.8,3940.6,0.45673]
[1761314155951,3.2078,3940.8,3940.4,0.45674]
[1761314156742,0.45672,3940.7,3940.2,0.45864983]
[1761314156945,3.2078,3940.8,3940.2,0.00186983]
[1761314157146,3.2078,3940.8,3940.4,0.45675]
[1761314157449,3.2078,3940.8,3940.2,0.00186983]
[1761314157842,0.45672,3940.7,3940.3,0.45676]
[1761314158247,3.66451,3940.8,3940.4,0.45675]
[1761314159058,3.2078,3940.8,3940.2,0.00186983]
[1761314159556,0.45672,3940.7,3940.2,0.00186983]
[1761314159958,0.45672,3940.7,3940.3,0.45676]
[1761314160156,3.2078,3940.8,3940.4,0.45675]
[1761314160356,3.2078,3940.8,3940.5,0.45674]
[1761314160547,3.2078,3940.8,3940.2,0.00186983]
[1761314160548,3.2078,3940.8,3940.7,0.45672]
[1761314160750,3.2078,3941.3,3941.0,0.45668]
[1761314160952,3.2078,3941.3,3940.7,9.975]
[1761314161859,3.2078,3941.3,3941.2,0.45666]
[1761314162258,3.2078,3941.3,3941.0,0.45667]
[1761314162455,3.66445,3941.3,3940.9,0.45669]
[1761314162658,0.45671,3940.8,3940.7,9.975]
[1761314162957,0.45676,3940.3,3940.2,0.00186983]
[1761314163150,3.66456,3940.3,3940.2,0.00186983]
[1761314163550,8.66456,3940.3,3940.2,0.00186983]
[1761314163965,4.23252847,3940.3,3940.2,0.00186983]
[1761314164152,3.77576847,3940.3,3940.2,0.00186983]
[1761314164358,3.2078,3940.3,3940.2,0.00186983]
[1761314164850,3.2078,3940.7,3940.3,0.45676]
[1761314165048,3.2078,3940.7,3940.5,0.45673]
[1761314165251,3.66446,3941.2,3940.6,0.45672]
[1761314165558,3.66446,3941.2,3940.2,3.20966983]
[1761314165559,3.66446,3941.2,3940.7,0.45672]
[1761314165955,3.2078,3941.2,3940.3,1.14192]
[1761314166158,0.002413,3941.7,3941.2,0.45665]
[1761314166352,3.2078,3941.6,3940.8,1.14177]
[1761314166554,0.002413,3941.7,3941.5,0.45662]
[1761314166862,0.002413,3941.7,3941.3,0.45664]
[1761314167053,0.002413,3941.7,3941.5,0.45662]
[1761314167253,3.2078,3941.6,3941.2,0.45666]
[1761314168256,3.2078,3941.6,3941.4,0.45663]
[1761314168764,0.002413,3941.7,3941.6,0.45661]
[1761314168962,0.002413,3941.7,3941.4,0.45663]
[1761314169555,0.002413,3941.7,3941.5,0.45662]
[1761314169755,0.002413,3941.7,3941.3,0.45665]
[1761314169961,0.002413,3941.7,3941.4,0.45664]
[1761314170159,0.002413,3941.7,3941.5,0.45662]
[1761314170663,0.002413,3941.7,3941.5,3.66442]
[1761314170974,3.2078,3942.4,3942.2,0.45654]
[1761314171859,3.66422,3943.3,3942.1,1.1414]
[1761314172061,0.57001621,3943.2,3942.2,1.14136]
[1761314172264,0.00265162,3943.3,3943.1,0.45644]
[1761314172560,0.00265162,3943.3,3943.1,0.45948658]
[1761314173765,3.2078,3943.8,3943.6,0.45638]
[1761314174166,3.2078,3943.8,3943.1,0.00304658]
[1761314174561,3.21045029,3943.8,3943.1,0.00304658]
[1761314174764,3.21045029,3943.8,3943.2,0.45643]
[1761314175063,0.45638,3943.7,3943.1,0.00304658]
[1761314175258,3.21045029,3943.8,3943.1,0.00304658]
[1761314175465,3.2078,3943.3,3943.1,0.00304658]
[1761314177264,3.2078,3943.3,3943.1,0.45948658]
[1761314177673,3.21045029,3943.8,3943.4,0.4564]
[1761314178261,3.21045029,3943.8,3943.3,0.45641]
[1761314178673,3.21045029,3943.8,3943.4,0.4564]
[1761314178967,0.45637,3943.7,3943.1,0.00304658]
[1761314179166,3.21045029,3943.8,3943.3,0.45641]
[1761314179366,3.21045029,3943.8,3943.1,0.00304658]
[1761314179564,3.66681029,3943.8,3943.1,0.00304658]
[1761314179868,3.66681029,3943.8,3943.3,0.45641]
[1761314180168,3.2078,3943.4,3943.1,0.00304658]
[1761314180369,3.2078,3943.4,3943.1,0.45948658]
[1761314180763,3.2078,3943.4,3943.2,0.45643]
[1761314181063,3.21045029,3943.8,3943.3,0.45641]
[1761314181365,0.45639,3943.6,3943.1,0.00304658]
[1761314181566,3.66682029,3943.8,3943.3,0.45642]
[1761314182368,0.45637,3943.7,3943.3,0.45642]
[1761314182664,0.45637,3943.7,3943.1,0.45947658]
[1761314182963,2.9e-07,3943.8,3943.7,0.45637]
[1761314183155,3.2078,3945.1,3944.9,0.45623]
[1761314183363,3.2078,3946.0,3944.8,3.2078]
[1761314183564,0.18019479,3946.6,3945.8,3.2078]
[1761314183869,3.2078,3947.0,3945.8,3.2078]
[1761314184066,3.66699041,3947.0,3946.3,0.45607]
[1761314184270,3.21100041,3947.0,3946.4,0.45606]
[1761314184464,0.00320041,3947.0,3946.3,0.00204026]
[1761314184673,0.00320041,3947.0,3946.8,0.45601]
[1761314185266,0.022,3947.8,3946.9,8.32794886]
[1761314185458,0.022,3947.8,3947.5,3.66372]
[1761314185658,0.022,3947.8,3947.5,3.2078]
[1761314185873,3.66373,3947.6,3946.8,0.456]
[1761314186066,3.66373,3947.6,3946.6,6.029]
[1761314186067,3.2078,3947.6,3946.6,6.029]
[1761314186268,3.21006847,3947.6,3946.7,0.45602]
[1761314186471,3.2078,3947.2,3946.4,0.45605]
[1761314186668,3.2078,3947.2,3946.3,0.00204026]
[1761314186669,3.2078,3946.8,3946.3,0.45811026]
[1761314186969,3.2078,3947.3,3946.6,0.45603]
[1761314187167,3.2078,3947.3,3946.3,0.00204026]
[1761314187470,3.2078,3946.9,3946.3,0.00204026]
[1761314188076,3.66381,3946.9,3946.3,0.00204026]
[1761314188272,3.2078,3946.9,3946.3,0.00204026]
[1761314188465,3.2078,3946.5,3946.3,0.00204026]
[1761314188673,3.66385,3946.5,3946.3,0.00204026]
[1761314188976,0.45611,3946.0,3945.3,0.45618]
[1761314189171,3.66392,3945.9,3945.1,0.4562]
[1761314189366,0.45615,3945.7,3945.0,3.2078]
[1761314189566,3.2078,3945.9,3944.8,0.45624]
[1761314189766,3.2078,3945.5,3944.8,0.45624]
[1761314190065,3.2078,3945.5,3944.9,0.45622]
[1761314190463,3.2078,3945.5,3945.1,0.4562]
[1761314190665,3.2078,3945.9,3945.6,0.45615]
[1761314191160,3.2078,3946.4,3946.0,0.4561]
[1761314191364,3.2078,3946.4,3945.5,3.2078]
[1761314191365,3.2078,3946.4,3946.1,0.45609]
[1761314191764,3.2078,3946.4,3945.9,0.45611]
[1761314191968,0.45609,3946.2,3945.5,3.2078]
[1761314192168,1.13994,3947.2,3944.8,0.00298174]
[1761314192169,3.2078,3945.6,3944.8,0.00298174]
[1761314192367,3.2078,3946.0,3945.0,3.2078]
[1761314192567,3.2078,3945.6,3945.0,3.2078]
[1761314192768,3.2078,3945.6,3944.8,0.00298174]
[1761314192966,3.66402,3945.1,3944.8,0.00298174]
[1761314193166,3.2078,3945.1,3944.8,0.00298174]
[1761314194075,3.2078,3945.2,3944.8,0.00298174]
[1761314194273,3.2078,3945.2,3944.8,0.45922174]
[1761314194476,3.2078,3945.2,3944.8,0.00298174]
[1761314194682,0.45622,3945.1,3944.8,0.00298174]
[1761314194876,3.664,3945.2,3944.8,0.00298174]
[1761314195073,0.45623,3944.9,3944.8,0.00298174]
[1761314195974,0.45622,3945.0,3944.8,0.00298174]
[1761314196682,0.45621,3945.1,3944.8,0.00298174]
[1761314196882,0.45623,3945.0,3944.8,0.00298174]
[1761314198186,3.2078,3945.2,3944.8,0.00298174]
[1761314198479,0.45622,3945.0,3944.8,0.00298174]
[1761314198987,1.14064,3944.8,3942.9,0.45646]
[1761314199282,0.45639,3943.6,3942.7,3.2078]
[1761314199484,0.45639,3943.6,3943.1,0.45643]
[1761314199783,3.2078,3943.7,3942.7,3.2078]
[1761314199784,3.2078,3943.7,3943.5,0.45639]
[1761314200083,0.00240552,3943.7,3943.5,0.45871196]
[1761314200978,3.2078,3943.6,3943.5,0.00232196]
[1761314201177,0.00240552,3943.7,3943.5,0.00232196]
[1761314201381,0.00240552,3943.7,3943.5,3.66651196]
[1761314202179,3.2078,3944.4,3943.6,1.14096]
[1761314202576,3.2078,3944.9,3943.6,1.14096]
[1761314202787,3.2078,3944.9,3943.6,3.2078]
[1761314202788,0.45625,3944.8,3943.6,3.2078]
[1761314203287,0.001799,3944.8,3943.8,0.45636]
[1761314203784,3.2078,3944.5,3943.6,3.2078]
[1761314203989,0.45629,3944.4,3943.9,0.45634]
[1761314204180,3.2078,3944.5,3943.6,3.2078]
[1761314204374,0.45634,3944.0,3943.5,0.00232196]
[1761314204780,0.45635,3944.0,3943.5,0.00232196]
[1761314204981,3.2078,3944.1,3943.6,0.45638]
[1761314205284,3.2078,3944.1,3943.5,0.45870196]
[1761314205480,3.2078,3944.1,3943.5,0.00232196]
[1761314205673,3.66417,3943.7,3943.5,0.00232196]
[1761314205878,3.2078,3943.7,3943.5,0.00232196]
[1761314206078,3.2078,3943.7,3943.5,0.45871196]
[1761314207281,3.2078,3943.7,3943.5,0.00232196]
[1761314207585,3.2078,3943.7,3943.6,0.45638]
[1761314208179,3.2078,3943.7,3943.5,0.00232196]
[1761314208385,3.2078,3944.1,3943.5,0.00232196]
[1761314208582,3.2078,3944.1,3943.7,0.45636]
[1761314209285,3.66413,3944.1,3943.7,0.45636]
[1761314210183,3.2078,3944.1,3943.6,0.45638]
[1761314210381,0.45635,3943.9,3943.5,0.00232196]
[1761314210688,3.2078,3944.1,3943.8,0.45636]
[1761314210984,3.66408,3944.5,3944.1,0.45632]
[1761314211188,3.2078,3944.5,3944.3,0.4563]
[1761314211878,3.2078,3944.5,3944.4,0.45629]
[1761314212482,3.2078,3944.5,3943.6,3.2078]
[1761314212781,3.2078,3944.1,3943.5,0.00232196]
[1761314212981,0.45634,3944.0,3943.6,0.45638]
[1761314213282,3.2078,3944.1,3943.8,0.45636]
[1761314213682,3.2078,3944.1,3943.6,1.14096]
[1761314213882,3.2078,3944.1,3944.0,0.45634]
[1761314214277,3.2078,3944.1,3943.5,0.00232196]
[1761314214678,3.2078,3944.1,3943.8,0.45636]
[1761314214879,3.66413,3944.1,3943.5,0.00232196]
[1761314215085,3.2078,3944.1,3943.5,0.00232196]
[1761314215586,3.2078,3944.1,3943.5,0.45871196]
[1761314215885,0.45634,3944.0,3943.5,0.00232196]
[1761314216087,3.2078,3944.1,3943.5,0.00232196]
[1761314216088,3.2078,3944.1,3943.7,0.45637]
[1761314216286,3.2078,3944.1,3943.5,0.00232196]
[1761314216484,3.66413,3944.1,3943.5,0.00232196]
[1761314216780,0.45635,3943.9,3943.5,0.00232196]
[1761314216987,3.66413,3944.1,3943.6,0.45638]
[1761314217285,0.45636,3943.9,3943.5,0.00232196]
[1761314217489,3.66414,3944.1,3943.5,0.00232196]
[1761314217680,0.56802047,3944.0,3943.7,0.45637]
[1761314217886,3.2078,3944.1,3943.9,0.45635]
[1761314218186,0.56855927,3944.0,3943.8,0.45636]
[1761314218386,3.66413,3944.1,3943.6,0.45637]
[1761314218387,0.56855927,3943.9,3943.6,0.45637]
[1761314218584,3.2078,3944.1,3943.7,0.45637]
[1761314218887,0.56856125,3944.0,3943.7,0.45636]
[1761314219088,3.2078,3944.1,3943.9,0.45635]
[1761314219286,0.56878676,3944.0,3943.9,0.45635]
[1761314219689,0.56878676,3944.0,3943.8,0.45636]
[1761314219887,0.56878676,3943.9,3943.5,0.00232196]
[1761314220085,3.2078,3944.1,3943.5,0.00232196]
[1761314220291,0.5688688,3944.0,3943.5,0.00232196]
[1761314220492,0.5688688,3943.9,3943.8,0.45636]
[1761314220692,3.2078,3944.1,3944.0,0.45634]
[1761314220989,0.001799,3944.8,3944.7,0.45626]
[1761314221291,0.001799,3944.8,3944.3,3.2078]
[1761314221488,3.2078,3944.4,3943.5,0.00232196]
[1761314221785,1.70993267,3944.7,3944.0,0.45633]
[1761314221786,0.56928267,3944.3,3944.0,0.45633]
[1761314221984,0.56928267,3944.2,3944.0,0.45633]
[1761314222185,0.56965029,3944.1,3943.8,0.45635]
[1761314222391,0.56965029,3944.0,3943.5,0.00232196]
[1761314222686,0.56965029,3943.9,3943.7,0.45636]
[1761314222887,0.4563,3944.4,3943.8,0.45635]
[1761314223195,0.56964,3944.3,3944.2,0.45631]
[1761314223394,0.56964,3944.3,3944.0,0.45633]
[1761314223702,0.56974921,3944.2,3944.1,0.45632]
[1761314224489,0.001799,3944.8,3944.4,0.45628]
[1761314224789,0.56986174,3944.7,3944.4,0.45628]
[1761314224991,0.56986174,3944.6,3944.4,0.45628]
[1761314225189,0.57015333,3944.5,3944.4,0.45628]
[1761314226777,0.001799,3944.8,3944.4,0.45628]
[1761314226979,0.57027038,3944.7,3944.6,0.45626]
[1761314227388,0.57027038,3944.7,3944.3,3.2078]
[1761314227587,0.57027038,3944.6,3944.5,0.45628]
[1761314227986,0.57027038,3944.6,3944.3,3.66409]
[1761314228189,0.001799,3944.8,3944.6,0.45626]
[1761314228388,0.56999901,3944.7,3944.6,0.45626]
[1761314228589,0.56999901,3944.7,3944.5,0.45628]
[1761314228789,0.56999901,3944.7,3944.3,3.2078]
[1761314228790,0.56999901,3944.6,3944.4,0.45629]
[1761314229085,0.458039,3944.8,3944.4,0.45629]
[1761314229292,0.56992144,3944.7,3944.5,0.45628]
[1761314229487,0.001799,3944.8,3944.3,3.66409]
[1761314229689,0.56989042,3944.7,3944.3,3.66409]
[1761314229887,0.001799,3944.8,3944.3,3.66409]
[1761314230086,0.56984421,3944.7,3944.4,0.45629]
[1761314230287,0.56984421,3944.7,3944.3,3.2078]
[1761314230288,0.001799,3944.8,3944.6,0.45627]
[1761314230592,0.5697505,3944.7,3944.3,3.2078]
[1761314230785,0.001799,3944.8,3944.7,0.45626]
[1761314230989,0.57154582,3944.8,3944.7,0.45626]
[1761314231886,0.57128859,3944.8,3944.6,0.45626]
[1761314232093,3.665849,3944.8,3943.9,3.2078]
[1761314232393,3.209599,3944.8,3944.5,0.45628]
[1761314232785,0.45629,3944.4,3943.6,1.35670171]
[1761314232990,3.2078,3944.4,3944.1,0.45632]
[1761314233488,3.2078,3944.4,3944.2,0.45631]
[1761314233792,0.45626,3944.7,3943.9,3.2078]
[1761314233989,0.56875752,3944.6,3943.5,4.56682367]
[1761314234189,3.209599,3944.8,3944.0,0.45633]
[1761314234493,0.45637,3943.8,3943.5,0.00232196]
[1761314234983,3.2078,3944.0,3943.5,0.00232196]
[1761314234984,0.45637,3943.7,3943.5,0.00232196]
[1761314235187,3.66418,3943.6,3943.5,0.00232196]
[1761314235386,4.2328832,3943.6,3943.5,0.00232196]
[1761314235588,9.2328832,3943.6,3943.5,0.00232196]
[1761314235892,4.2328832,3943.6,3943.5,0.00232196]
[1761314236494,8.85577734,3943.6,3942.2,3.2078]
[1761314236692,0.45648,3942.8,3942.2,3.66434]
[1761314236893,0.45642,3943.3,3942.7,0.45649]
[1761314237090,1.02487171,3943.2,3942.6,0.45649]
[1761314237288,3.77624171,3943.1,3942.6,0.45649]
[1761314237483,0.56844171,3943.0,3942.6,0.45977557]
[1761314237690,3.2078,3943.1,3942.7,0.45648]
[1761314237996,0.56814369,3943.0,3942.7,0.45648]
[1761314238293,3.2078,3943.1,3942.9,0.45645]
[1761314238595,0.45641,3943.4,3942.6,0.00328557]
[1761314238894,0.56776418,3943.3,3942.8,0.45647]
[1761314239095,0.45641,3943.4,3942.9,0.45646]
[1761314239294,0.45641,3943.4,3943.0,0.45645]
[1761314239497,3.2078,3943.6,3943.3,0.45642]
[1761314239797,3.2078,3943.6,3942.8,3.2078]
[1761314239994,3.2078,3944.0,3943.2,3.2078]
[1761314240189,3.2078,3944.0,3943.2,4.34886]
[1761314240394,3.2078,3944.0,3943.8,0.45636]
[1761314240991,3.209599,3944.8,3943.9,0.45634]
[1761314241293,0.5677266,3944.7,3944.0,3.2078]
[1761314241498,3.209599,3944.8,3944.0,3.2078]
[1761314241693,0.458049,3944.8,3944.2,0.4563]
[1761314241894,0.001799,3944.8,3944.0,3.39239404]
[1761314242495,0.001799,3944.8,3944.4,0.45629]
[1761314243001,0.001799,3944.8,3944.5,0.45627]
[1761314243193,0.001799,3944.8,3944.4,3.66408]
[1761314243598,0.458049,3944.8,3944.2,0.4563]
[1761314243798,0.458049,3944.8,3944.3,0.4563]
[1761314243999,0.001799,3944.8,3944.4,0.45629]
[1761314245301,0.001799,3944.8,3944.5,0.45628]
[1761314245695,0.001799,3944.8,3944.6,0.45626]
[1761314246103,0.001799,3944.8,3944.4,0.45628]
[1761314246306,0.001799,3944.8,3944.0,3.39082656]
[1761314246307,0.001799,3944.8,3944.3,0.45629]
[1761314246601,0.45627,3944.7,3944.2,0.45631]
[1761314246897,0.001799,3944.8,3944.6,0.45626]
[1761314247097,0.89329703,3946.1,3945.1,1.14053]
[1761314247302,3.2078,3946.4,3945.7,3.2078]
[1761314247497,3.2078,3946.4,3946.2,0.45608]
[1761314247698,3.2078,3946.8,3946.2,3.66387]
[1761314247900,3.2078,3946.8,3946.4,0.45606]
[1761314248098,3.2078,3946.8,3946.5,0.45605]
[1761314248301,3.20986901,3946.8,3946.5,0.45605]
[1761314248503,3.20986901,3946.8,3946.4,0.00299612]
[1761314248704,3.20986901,3946.8,3946.5,0.45604]
[1761314249704,3.20986901,3946.8,3946.6,0.45603]
[1761314250093,0.00206901,3946.8,3946.6,0.45603]
[1761314250296,0.00206901,3946.8,3946.6,3.66383]
[1761314251506,0.00206901,3946.8,3946.4,0.00299612]
[1761314251797,3.2078,3946.6,3946.4,0.00299612]
[1761314252003,3.66384,3946.6,3946.4,0.00299612]
[1761314254602,1.14027,3946.1,3944.6,3.2078]
[1761314254802,3.66397,3945.5,3944.6,3.2078]
[1761314255108,0.4562,3945.2,3944.6,3.2078]
[1761314255314,3.2078,3945.5,3944.6,3.2078]
[1761314255502,0.4562,3945.2,3944.7,0.45625]
[1761314255697,3.2078,3945.5,3944.7,0.00186144]
[1761314256008,14.57590604,3946.8,3944.7,0.00186144]
[1761314256009,3.2078,3945.1,3944.7,0.00186144]
[1761314256204,3.2078,3945.5,3945.1,0.45621]
[1761314256405,3.2078,3945.5,3944.7,0.00186144]
[1761314256610,3.2078,3945.5,3945.2,0.45619]
[1761314256910,3.2078,3945.5,3945.3,0.45618]
[1761314257710,3.2078,3945.5,3945.2,0.4562]
[1761314258312,3.2078,3945.5,3945.1,0.45621]
[1761314258611,3.2078,3945.5,3945.2,0.45619]
[1761314258908,3.2078,3945.5,3944.9,0.45623]
[1761314259105,3.2078,3945.5,3945.0,0.45622]
[1761314259507,3.2078,3945.5,3945.1,0.45621]
[1761314260007,3.2078,3945.5,3944.7,0.00186144]
[1761314260307,3.2078,3945.1,3944.8,0.45624]
[1761314260706,3.2078,3945.1,3944.7,0.00186144]
[1761314261307,0.45622,3945.0,3944.7,0.00186144]
[1761314261509,1.14056,3945.0,3943.2,3.2078]
[1761314261711,0.45626,3944.7,3943.7,3.66417]
[1761314261910,0.45627,3944.6,3943.9,0.45634]
[1761314262315,3.2078,3944.4,3943.8,0.45635]
[1761314262503,3.2078,3944.4,3943.9,0.45634]
[1761314263110,3.2078,3944.4,3944.0,0.45633]
[1761314263506,3.2078,3944.4,3943.8,0.00295076]
[1761314263713,3.2078,3943.9,3941.7,1.35670171]
[1761314263911,3.2078,3943.9,3941.4,3.2078]
[1761314263912,3.2078,3941.8,3941.0,1.35670171]
[1761314264216,3.2078,3941.8,3939.6,3.2078]
[1761314264217,3.2078,3941.3,3939.6,3.2078]
[1761314264425,3.2078,3940.7,3939.2,3.2078]
[1761314264606,3.2078,3940.7,3939.2,3.20996226]
[1761314264607,3.2078,3940.3,3939.2,3.20996226]
[1761314264807,3.2078,3940.3,3940.1,0.45678]
[1761314265115,0.00246307,3940.7,3940.1,3.2078]
[1761314265318,0.00246307,3940.7,3940.1,3.66458]
[1761314265617,3.2078,3941.7,3940.6,3.2078]
[1761314266317,3.2078,3942.8,3941.5,3.2078]
[1761314266510,3.21095049,3942.8,3942.1,0.45655]
[1761314266706,3.21095049,3942.8,3942.1,0.00253901]
[1761314266908,0.00315049,3942.8,3942.1,0.00253901]
[1761314267115,0.00315049,3942.8,3942.7,0.45649]
[1761314267306,0.00315049,3942.8,3942.5,3.2078]
[1761314267510,3.2078,3943.7,3942.6,5.0]
[1761314267709,3.2078,3943.7,3943.0,3.2078]
[1761314267909,3.2078,3943.3,3942.4,3.2078]
[1761314268114,3.2078,3943.3,3943.1,0.45643]
[1761314268304,13.19017406,3945.8,3943.3,0.45641]
[1761314268305,3.2078,3943.9,3943.3,0.45641]
[1761314268510,3.2105811,3943.9,3943.3,0.45641]
[1761314268705,0.0027811,3943.9,3943.8,0.45636]
[1761314268916,0.0027811,3943.9,3943.1,1.14111]
[1761314268917,0.0027811,3943.9,3943.4,3.2534453]
[1761314269106,0.0027811,3943.9,3943.2,0.45643]
[1761314269311,0.0027811,3943.9,3943.4,0.4564]
[1761314269510,0.0027811,3943.9,3943.8,0.45636]
[1761314270304,0.0027811,3943.9,3943.7,0.45636]
[1761314270510,0.0027811,3943.9,3943.8,0.45636]
[1761314271311,0.0027811,3943.9,3943.0,3.2078]
[1761314271613,3.2078,3943.8,3942.6,3.2078]
[1761314271814,3.2078,3943.4,3942.6,3.2078]
[1761314272017,3.2078,3943.4,3942.6,3.66429]
[1761314272316,3.2078,3943.0,3942.4,3.2078]
[1761314272616,3.2078,3943.4,3942.4,3.66431]
[1761314272816,3.2078,3943.4,3942.4,3.2078]
[1761314273019,3.2078,3943.4,3942.1,0.00253901]
[1761314273020,3.2078,3943.4,3943.2,0.45643]
[1761314274019,0.0027811,3943.9,3943.7,0.45636]
[1761314274814,0.0027811,3943.9,3943.5,0.45639]
[1761314275021,0.0027811,3943.9,3943.6,0.45637]
[1761314275218,0.0027811,3943.9,3943.7,0.45636]
[1761314276516,0.0027811,3943.9,3943.8,3.2078]
[1761314278223,3.2105811,3943.9,3943.0,9.811]
[1761314278421,3.2078,3943.1,3942.1,3.21033901]
[1761314278719,3.2078,3942.7,3942.2,0.45653]
[1761314279224,3.2078,3942.7,3942.1,0.00253901]
[1761314279720,3.2078,3942.7,3942.1,0.45908901]
[1761314279915,3.2078,3942.7,3942.1,0.00253901]
[1761314280116,3.2078,3942.7,3942.2,0.45654]
[1761314280323,3.2078,3942.7,3942.3,0.45653]
[1761314280519,3.2078,3942.7,3942.4,0.45651]
[1761314280818,1.1436611,3943.9,3942.1,0.00253901]
[1761314280819,3.2078,3943.3,3942.7,0.45647]
[1761314281020,3.2078,3943.3,3943.1,0.45644]
[1761314281223,3.2078,3943.3,3942.7,3.2078]
[1761314281412,3.2078,3943.3,3943.1,0.45643]
[1761314282416,3.2078,3943.3,3943.1,0.45644]
[1761314282623,3.2078,3943.3,3942.7,3.2078]
[1761314282816,3.66422,3943.3,3942.6,0.45649]
[1761314283022,3.2078,3942.8,3942.4,0.45652]
[1761314283326,3.2078,3942.8,3942.1,0.00253901]
[1761314283327,0.45649,3942.7,3942.1,0.45908901]
[1761314283523,3.2078,3942.8,3942.1,0.45908901]
[1761314283736,3.2078,3942.8,3942.2,0.45654]
[1761314284024,3.2078,3942.8,3942.1,0.00253901]
[1761314284025,3.66428,3942.8,3942.1,0.45908901]
[1761314284213,0.0027811,3943.9,3943.2,0.45643]
[1761314284412,0.0027811,3943.9,3943.4,0.4564]
[1761314284615,0.0027811,3943.9,3942.9,4.34896]
[1761314284820,0.0027811,3943.9,3943.7,0.45637]
[1761314285122,0.0027811,3943.9,3943.4,0.4564]
[1761314285323,0.0027811,3943.9,3943.5,0.45639]
[1761314285522,0.0027811,3943.9,3943.6,0.45638]
[1761314285717,0.0027811,3943.9,3943.7,0.45637]
[1761314291728,0.0027811,3943.9,3943.8,0.45636]
[1761314292432,0.0027811,3943.9,3943.2,4.34888]
[1761314293220,0.0027811,3943.9,3943.8,0.45636]
[1761314294927,0.0027811,3943.9,3943.3,1.14105]
[1761314295327,0.0027811,3943.9,3943.8,0.45636]
[1761314301140,0.89329703,3945.7,3945.6,0.45614]
[1761314301339,3.2078,3946.3,3945.6,0.45614]
[1761314301544,3.2078,3946.3,3945.2,3.2078]
[1761314301545,0.57449519,3946.2,3945.2,3.2078]
[1761314301730,3.2078,3946.3,3945.6,0.45615]
[1761314301931,0.57296636,3946.2,3945.6,0.45615]
[1761314302135,0.45608,3946.2,3945.6,0.00233217]
[1761314302333,3.2078,3945.8,3945.6,0.00233217]
[1761314303537,0.45614,3945.7,3945.6,0.00233217]
[1761314303743,1.02840573,3945.7,3945.6,0.00233217]
[1761314304333,6.02840573,3945.7,3945.6,0.00233217]
[1761314304838,0.45618,3945.4,3944.6,0.45627]
[1761314305036,3.66398,3945.4,3944.6,0.45627]
[1761314305438,3.66398,3945.4,3944.7,0.45625]
[1761314305645,3.2078,3945.4,3944.8,0.45624]
[1761314305944,3.2078,3945.4,3944.9,0.45622]
[1761314306248,3.2078,3945.4,3945.2,0.45619]
[1761314306451,0.0022747,3946.3,3945.9,0.45611]
[1761314306744,0.0022747,3946.3,3945.3,3.2078]
[1761314306745,0.57196195,3946.2,3946.0,0.4561]
[1761314306948,0.0022747,3946.3,3946.2,0.45608]
[1761314307748,0.0022747,3946.3,3945.7,3.2078]
[1761314307952,0.0022747,3946.3,3946.1,0.45609]
[1761314308542,0.0022747,3946.3,3945.6,0.45615]
[1761314308746,3.2078,3945.9,3945.6,0.45615]
[1761314309646,3.2078,3945.9,3945.7,0.45614]
[1761314310140,3.2100747,3946.3,3946.0,0.4561]
[1761314310550,3.2100747,3946.3,3946.1,0.45608]
[1761314310750,3.2100747,3946.3,3945.5,3.2078]
[1761314311052,3.2100747,3946.3,3946.1,0.45609]
[1761314311555,0.0022747,3946.3,3946.1,0.45609]
[1761314311744,3.2100747,3946.3,3946.1,0.45609]
[1761314311940,3.2100747,3946.3,3945.9,0.45611]
[1761314312152,3.2100747,3946.3,3946.0,0.4561]
[1761314312947,3.6661447,3946.3,3946.0,0.4561]
[1761314313345,3.2100747,3946.3,3946.0,0.4561]
[1761314313548,3.2100747,3946.3,3945.5,3.2078]
[1761314314062,0.4561,3946.1,3945.7,0.45613]
[1761314314349,0.45609,3946.2,3945.1,1.14053]
[1761314314551,0.45609,3946.2,3945.8,0.45613]
[1761314314750,0.4561,3946.1,3945.8,0.45613]
[1761314314949,3.2078,3945.9,3945.7,0.45614]
[1761314315549,3.66392,3945.9,3945.5,0.45616]
[1761314315752,3.2078,3945.9,3945.6,0.45615]
[1761314316059,3.2078,3945.9,3945.7,0.45614]
[1761314316647,3.2078,3945.9,3945.8,0.45613]
[1761314316846,0.0022747,3946.3,3946.0,0.4561]
[1761314317052,0.0022747,3946.3,3946.1,0.45609]
[1761314317253,0.0022747,3946.3,3945.2,1.1405]